Cogmind - Beta 9.6 @@@ ROGUE MODE // 2020.09.02 @ 01:43:57 Player: zapruda Result: Destroyed by G-50 Soldier with Heavy Laser Performance ------------- Evolutions (1) 500 Regions Visited (5) 1000 Robots Destroyed (90) 450 Value Destroyed (1964) 1964 Prototype IDs (6) 120 Alien Tech Used (0) 0 Bonus (56) 56 TOTAL SCORE: 4090 Bonus ------- High Alert Combat Kills 56 Cogmind --------- Core Integrity 0/400 Matter 300/300 Energy 28/100 System Corruption 0% Temperature Cool (344) Movement Rolling (110) Ox1 Location -6/Proximity Caves Parts ------- > --- POWER (1) -------- (None) > --- PROPULSION (2) --- Armored Huge Wheel > --- UTILITY (4) ------ High-capacity Storage Unit 0b10 Decoder Chip [Generic] 0b10 Decoder Chip [Scout] Advanced Hacking Suite > --- WEAPON (2) ------- Improved EM Pulse Cannon Heavy Ion Cannon > --- INVENTORY (12) --- Reinforced Ion Engine Light Nuclear Core Armored Wheel Improved Heat Sink Core Shielding Relay Coupler [Programmer] (76) Gatling Laser Plasma Cannon Light Assault Rifle Self-destruct Interrupter (50) Peak State ------------ > --- POWER ------------ Improved Deuterium Engine > --- PROPULSION ------- Armored Huge Wheel > --- UTILITY ---------- High-capacity Storage Unit 0b10 Decoder Chip [Generic] 0b10 Decoder Chip [Scout] Advanced Hacking Suite > --- WEAPON ----------- Gatling Laser Heavy Ion Cannon > --- INVENTORY -------- Reinforced Ion Engine Light Nuclear Core Light Treads Armored Wheel Improved Heat Sink Core Shielding Relay Coupler [Programmer] Improved EM Pulse Cannon Plasma Cannon Light Assault Rifle Remote Datajack [Rating: 40] Favorites ----------- Power Improved Ion Engine Engine Improved Ion Engine Propulsion Light Treads Treads Light Treads Wheel Armored Huge Wheel Utility Core Shielding Device Shield Generator Storage High-capacity Storage Unit Processor 0b10 Decoder Chip [Generic] Hackware Advanced Hacking Suite Protection Core Shielding Weapon Assault Cannon Energy Gun Gatling Laser Energy Cannon Heavy Ion Cannon Ballistic Gun Assault Rifle Ballistic Cannon Assault Cannon Launcher Grenade Launcher Special Weapon Remote Datajack Build | -11 -10 -9 -9 -7 -6 ------- Run | Scr Mat Mat Min Zio Pro Slots Evolved 2 | . . 2 . . . Power . | . . . . . . Propulsion . | . . . . . . Utility 2 | . . 2 . . . Weapon . | . . . . . . Parts Attached 71 | 7 8 35 15 5 1 Power 11 | 1 2 4 3 1 . Engine 11 | 1 2 4 3 1 . Core . | . . . . . . Reactor . | . . . . . . Propulsion 11 | 2 1 7 1 . . Treads 10 | 2 1 7 . . . Leg . | . . . . . . Wheel 1 | . . . 1 . . Hover . | . . . . . . Flight . | . . . . . . Utility 24 | 2 2 11 6 3 . Device 9 | 1 . 3 5 . . Storage 4 | 1 1 2 . . . Processor 4 | . . 2 . 2 . Hackware 1 | . . . . 1 . Protection 6 | . 1 4 1 . . Artifact . | . . . . . . Weapon 25 | 2 3 13 5 1 1 Energy Gun 7 | . . 5 2 . . Energy Cannon 3 | . . . 2 . 1 Ballistic Gun 4 | 2 . 2 . . . Ballistic Cannon 8 | . 2 5 1 . . Launcher 2 | . 1 1 . . . Special Weapon 1 | . . . . 1 . Impact Weapon . | . . . . . . Slashing Weapon . | . . . . . . Piercing Weapon . | . . . . . . Special Melee Weapon . | . . . . . . Unidentified Prototypes 2 | . . 2 . . . Parts Lost 15 | . 1 5 7 . 2 Power 2 | . . . 1 . 1 Propulsion 2 | . . 1 1 . . Utility 6 | . 1 2 3 . . Weapon 5 | . . 2 2 . 1 Highest Loss Streak 3 | . 1 3 2 . 1 Average Slot Usage (%) 91 | . 98 95 81 83 87 Engine 11 | . 13 10 10 11 11 Treads 14 | . 28 21 4 . . Wheel 3 | . . . 8 11 11 Device 6 | . 4 6 18 4 . Storage 13 | . 14 15 11 11 11 Processor 5 | . . 3 . 13 22 Hackware 1 | . . . . 2 11 Protection 12 | . 8 16 11 8 . Energy Gun 4 | . . 2 6 8 . Energy Cannon 4 | . . . 10 11 15 Ballistic Gun 1 | . 7 1 . . . Ballistic Cannon 9 | . 15 15 . . . Naked Turns . | . . . . . . Heaviest Build 60 | 11 28 60 60 55 56 Greatest Support 40 | 40 40 40 40 28 28 Greatest Overweight (x) 2 | . . 1 2 1 1 Average Overweight (x) . | . . . 1 1 1 Largest Inventory Capacity 12 | 6 10 12 12 12 12 Average Capacity 10 | 5 8 10 12 12 12 Most Carried 12 | 5 10 12 10 12 12 Average Carried 8 | 3 8 9 6 9 10 Final Capacity 12 | 6 10 12 12 12 12 Final Carried 12 | 4 10 8 8 12 10 Class Distribution -------------------- 90% | Mutant 9% | Derelict-Mutant Dominant Class ---------------- Mutant | -10/Materials Mutant | -9/Materials Mutant | -9/Mines Mutant | -7/Zion Derelict-Mutant | -6/Proximity Caves Resources | -11 -10 -9 -9 -7 -6 ----------- Run | Scr Mat Mat Min Zio Pro Matter Collected 2000 | 334 240 963 393 30 40 Remotely 116 | 85 31 . . . . Salvage Created 2399 | 144 363 1008 682 . 202 Parts 175 | 10 39 92 32 . 2 Haulers Intercepted 2 | . . 2 . . . Recyclers Shooed 4 | . 1 2 1 . . Parts Field Recycled . | . . . . . . Retrieved Matter . | . . . . . . Parts Self-Destructed 1 | . . . . . 1 Prevented . | . . . . . . Kills | -11 -10 -9 -9 -7 -6 ------- Run | Scr Mat Mat Min Zio Pro Combat Hostiles Destroyed 59 | . 13 31 14 . 1 Guns 11 | . 1 2 8 . . Cannons 44 | . 8 29 6 . 1 AOE 4 | . 4 . . . . Classes Destroyed 13 | 3 5 3 1 . 1 Worker 6 | 2 1 2 1 . . Builder 8 | . 4 3 1 . . Tunneler 6 | 2 . 1 3 . . Hauler 2 | . . 2 . . . Recycler 4 | 1 1 1 1 . . Operator 2 | . 1 1 . . . Watcher 3 | . 1 2 . . . Swarmer 22 | . 6 13 3 . . Grunt 25 | . 7 10 8 . . Brawler 2 | . . 1 1 . . Sentry 7 | . . 7 . . . Demolisher 2 | . . . 2 . . Hunter 1 | . . . . . 1 Best Kill Streak 8 | 5 8 6 6 . 1 Combat Bots Only 5 | . 4 5 5 . 1 Max Kills in Single Turn 2 | 1 2 2 1 . 1 Gunslinging 1 | . . 1 . . . Exploded 2 | . 2 . . . . Melee . | . . . . . . Uniques/NPCs Destroyed . | . . . . . . Combat | -11 -10 -9 -9 -7 -6 -------- Run | Scr Mat Mat Min Zio Pro Damage Taken 3792 | . 550 1837 800 . 605 Core 478 | . 69 206 125 . 78 Absorbed by Shields 493 | . . 403 90 . . Core Remaining (%) 86 | 100 72 . . . . Volleys Fired 203 | 16 32 95 42 . 18 Largest 2 | 2 2 2 2 . 2 Hottest 145 | 40 70 119 145 . 134 Shots Fired 374 | 32 64 179 73 . 26 Gun 106 | 32 14 29 31 . . Cannon 253 | . 40 148 42 . 23 Launcher 12 | . 10 2 . . . Special 3 | . . . . . 3 Kinetic 248 | 32 54 159 3 . . Thermal 103 | . . 18 70 . 15 Explosive 10 | . 10 . . . . Electromagnetic 10 | . . 2 . . 8 Robot Hit Streak 12 | 9 5 12 8 . 6 Robot Miss Streak 6 | 2 5 6 5 . 2 Penetration Max . | . . . . . . Secondary Targets 1 | . . 1 . . . Max Gunslinging Chain 1 | . . 1 . . . Shots Hit Robots 209 | 23 28 98 42 . 18 Core Hits 127 | 9 31 53 29 . 5 Critical Hits 1 | . . 1 . . . Critical Kills . | . . . . . . Critical Parts Destroyed 1 | . . 1 . . . Melee Attacks . | . . . . . . Impact . | . . . . . . Slashing . | . . . . . . Piercing . | . . . . . . Sneak Attacks . | . . . . . . Combat Hostiles . | . . . . . . Follow-up Attacks . | . . . . . . Damage Inflicted 4228 | 244 829 1926 829 . 400 Guns 956 | 244 52 263 397 . . Cannons 2766 | . 325 1609 432 . 400 Explosions 497 | . 450 47 . . . Melee . | . . . . . . Ramming 9 | . 2 7 . . . Kinetic 2430 | 244 377 1754 55 . . Thermal 1159 | . . 118 774 . 267 Explosive 450 | . 450 . . . . Electromagnetic 180 | . . 47 . . 133 Impact . | . . . . . . Slashing . | . . . . . . Piercing . | . . . . . . Highest Corruption 1 | . . 1 1 1 . Average Corruption 1 | . . 1 1 1 . Corruption Purged . | . . . . . . Effects 19 | . . 16 3 . . Message Errors 5 | . . 5 . . . Energy Discharges 5 | . . 3 2 . . Data Loss (minor) 9 | . . 8 1 . . Overload Shots . | . . . . . . Overflow Damage 58 | . 11 17 . . 30 Projectiles 47 | . . 17 . . 30 Explosions 11 | . 11 . . . . Melee . | . . . . . . Knockbacks 15 | . 5 10 . . . Impact . | . . . . . . Kinetic 13 | . 4 9 . . . Secondary 2 | . 1 1 . . . Self-Inflicted Damage 87 | . 81 6 . . . Shots 5 | . 4 1 . . . Rammed 3 | . 1 1 1 . . Targets Rammed 3 | . 1 1 1 . . Kicked . | . . . . . . Crushed . | . . . . . . Highest Temperature 498 | . 84 251 498 . 335 Average Temperature 84 | . 20 76 119 . 96 Received Heat Transfer 1155 | . 162 615 270 . 108 Effects 8 | . . 2 6 . . Shutdowns 2 | . . . 2 . . Energy Bleed 1 | . . . 1 . . Interference 5 | . . 2 3 . . Siege Activations . | . . . . . . Robots Corrupted . | . . . . . . Combat Hostiles . | . . . . . . Parts Fried . | . . . . . . Impact Corruptions . | . . . . . . Robots Melted . | . . . . . . Combat Hostiles . | . . . . . . Parts Melted 2 | . . . . . 2 Heat Transferred 2081 | . . 259 1452 . 370 Parts Sabotaged . | . . . . . . Parts Stolen . | . . . . . . Parts Stripped . | . . . . . . Power Chain Reactions . | . . . . . . Missiles Intercepted . | . . . . . . Alert | -11 -10 -9 -9 -7 -6 ------- Run | Scr Mat Mat Min Zio Pro Peak Influence 550 | 25 296 550 379 . . Average Influence 231 | 7 163 257 280 . . Maximum Alert Level 2 | . 1 2 1 . . Low Security (%) 47 | 100 63 46 15 . . Level 1 39 | . 36 32 84 . . Level 2 12 | . . 21 . . . Level 3 . | . . . . . . Level 4 . | . . . . . . Level 5 . | . . . . . . High Security . | . . . . . . Max Security . | . . . . . . Squads Dispatched 9 | . 4 3 2 . . Investigation 4 | . 2 1 1 . . Extermination . | . . . . . . Reinforcement 4 | . 2 1 1 . . Assault 1 | . . 1 . . . Garrison . | . . . . . . Intercept . | . . . . . . Construction Impeded 1 | . . . 1 . . Haulers Reinforced . | . . . . . . Stealth | -11 -10 -9 -9 -7 -6 --------- Run | Scr Mat Mat Min Zio Pro Distress Signals 5 | . . 5 . . . Communications Jammed . | . . . . . . Distress Signals . | . . . . . . Times Spotted 87 | . 18 49 15 . 5 Peak Tracking Total 6 | . 4 6 3 . 4 Tactical Retreats 8 | . 1 6 1 . . Traps | -11 -10 -9 -9 -7 -6 ------- Run | Scr Mat Mat Min Zio Pro Traps Triggered 1 | . . 1 . . . Indirectly . | . . . . . . Trap Hack Attempts . | . . . . . . Triggered . | . . . . . . Disarmed . | . . . . . . Reprogrammed . | . . . . . . Reused . | . . . . . . Traps Extracted . | . . . . . . Installed . | . . . . . . Triggered . | . . . . . . Machines | -11 -10 -9 -9 -7 -6 ---------- Run | Scr Mat Mat Min Zio Pro Machines Disabled 10 | . 2 4 4 . . Max in Single Turn 2 | . 1 1 2 . . Machines Sabotaged . | . . . . . . Garrisons Compromised . | . . . . . . Overloaded Fab Kills . | . . . . . . Fab Network Shutdowns . | . . . . . . Hacking | -11 -10 -9 -9 -7 -6 --------- Run | Scr Mat Mat Min Zio Pro Machines Accessed 15 | . 6 8 1 . . Terminals 10 | . 5 5 . . . Fabricators . | . . . . . . Repair Stations . | . . . . . . Recycling Units 3 | . 1 2 . . . Scanalyzers 1 | . . 1 . . . Garrison Access . | . . . . . . Total Hacks 59 | . 25 33 1 . . Successful 37 | . 15 21 1 . . Failed 22 | . 10 12 . . . Catastrophic 2 | . . 2 . . . Database Lockouts . | . . . . . . Manual . | . . . . . . Terminals 47 | . 23 24 . . . Fabricators . | . . . . . . Repair Stations . | . . . . . . Recycling Units 7 | . 2 5 . . . Scanalyzers 4 | . . 4 . . . Garrison Access . | . . . . . . Terminal Hacks 32 | . 13 18 1 . . Record 14 | . 3 11 . . . Prototype ID Bank 2 | . 1 1 . . . Open Door 1 | . . . 1 . . Branch Access Points 1 | . 1 . . . . Emergency Access Points 1 | . . 1 . . . Alert Level 2 | . 1 1 . . . Locate Traps 2 | . 2 . . . . Dispatch Records 1 | . . 1 . . . Assault Status 1 | . 1 . . . . Hauler Manifests 3 | . 2 1 . . . Registered Prototypes 1 | . 1 . . . . Zone Layout 3 | . 1 2 . . . Fabricator Hacks . | . . . . . . Repair Station Hacks . | . . . . . . Recycling Unit Hacks 3 | . 2 1 . . . Report Inventory 2 | . 1 1 . . . Retrieve Components 1 | . 1 . . . . Scanalyzer 2 | . . 2 . . . Insert Component 1 | . . 1 . . . Analyze 1 | . . 1 . . . Garrison Access Hacks . | . . . . . . Unauthorized Hacks . | . . . . . . Terminals . | . . . . . . Fabricators . | . . . . . . Repair Stations . | . . . . . . Recycling Units . | . . . . . . Scanalyzers . | . . . . . . Garrison Access . | . . . . . . Data Cores Recovered 1 | . . 1 . . . Used . | . . . . . . Hacking Detections 13 | . 5 8 . . . Full Trace Events 7 | . 3 4 . . . Feedback Events . | . . . . . . Feedback Blocked . | . . . . . . Robot Schematics Acquired . | . . . . . . Robots Built . | . . . . . . Matter . | . . . . . . Time . | . . . . . . Total Robot Build Rating . | . . . . . . Part Schematics Acquired 1 | . . 1 . . . Parts Built . | . . . . . . Matter . | . . . . . . Time . | . . . . . . Total Part Build Rating . | . . . . . . Parts Repaired . | . . . . . . Time . | . . . . . . Parts Recycled . | . . . . . . Recycled Matter . | . . . . . . Retrieved Matter . | . . . . . . Retrieved Components 9 | . 9 . . . . Parts Scanalyzed 1 | . . 1 . . . Part Schematics Acquired 1 | . . 1 . . . Parts Damaged . | . . . . . . Bothacking | -11 -10 -9 -9 -7 -6 ------------ Run | Scr Mat Mat Min Zio Pro Used RIF Installer . | . . . . . . Robots Hacked 1 | . . . . . 1 Non-combat . | . . . . . . Combat 1 | . . . . . 1 Robot Hacks Applied 1 | . . . . . 1 parse_system 1 | . . . . . 1 Relay Couplers Released . | . . . . . . Robots Rewired . | . . . . . . Allies Hacked . | . . . . . . Hacks Repelled . | . . . . . . Allies | -11 -10 -9 -9 -7 -6 -------- Run | Scr Mat Mat Min Zio Pro Total Allies . | . . . . . . Largest Group . | . . . . . . Highest-Rated Group . | . . . . . . Highest-Rated Ally . | . . . . . . Total Orders . | . . . . . . Ally Attacks . | . . . . . . Total Damage . | . . . . . . Kills . | . . . . . . Allies Corrupted . | . . . . . . Allies Melted . | . . . . . . Intel | -11 -10 -9 -9 -7 -6 ------- Run | Scr Mat Mat Min Zio Pro Robot Analysis Total . | . . . . . . Derelict Logs Recovered 4 | . . . 2 1 1 Drone Launches . | . . . . . . Drone Recoveries . | . . . . . . Exploration | -11 -10 -9 -9 -7 -6 ------------- Run | Scr Mat Mat Min Zio Pro Turns Passed 4444 | 163 611 2004 542 929 195 Spaces Moved 2553 | 66 300 898 319 831 139 Core 3 | 3 . . . . . Treads 1314 | 63 300 898 53 . . Legs . | . . . . . . Wheels 1236 | . . . 266 831 139 Hover . | . . . . . . Flight . | . . . . . . Fastest Speed 50 | 50 160 160 110 110 110 Average Speed 139 | 155 160 170 121 110 110 Slowest Speed 200 | 160 160 180 200 110 110 Overloaded Moves . | . . . . . . Propulsion Burnouts . | . . . . . . Robots Hopped . | . . . . . . Cave-ins Triggered . | . . . . . . Exploration Rate (%) 52 | 5 61 64 72 80 30 Regions Visited 5 Branch Regions 3 Pre-discovered Areas 2 | . . . . 1 1 Known Exits Taken . | . . . . . . Unknown Exits Taken 5 | 1 1 1 1 1 . Scrap Searched 6 | . . . 1 4 1 Spaces Dug . | . . . . . . Terrain Destroyed 105 | . 50 35 18 . 2 Melee . | . . . . . . Projectile 56 | . 1 35 18 . 2 AOE 49 | . 49 . . . . Actions | -11 -10 -9 -9 -7 -6 --------- Run | Scr Mat Mat Min Zio Pro Total 3073 | 98 371 1202 397 846 159 Wait 105 | . . 103 2 . . Move 2548 | 65 299 897 318 830 139 Hop . | . . . . . . Pick Up 79 | 10 16 32 13 8 . Fast Attach 7 | 1 4 2 . . . Attach 41 | 6 1 17 14 2 1 Detach 8 | . 1 6 1 . . Swap 23 | . 3 16 1 3 . Drop 56 | . 14 33 5 3 1 Fire 203 | 16 32 95 42 . 18 Melee . | . . . . . . Ram . | . . . . . . Kick . | . . . . . . Crush 3 | . 1 1 1 . . Escape Stasis . | . . . . . . Rewire . | . . . . . . Trap . | . . . . . . Miscellaneous . | . . . . . . Route ------- -11/Scrapyard -10/Materials (discovered 2 exits: *Mat / *Min) -9/Materials -9/Mines (discovered 2 exits: [*Mat] / *Zio) -7/Zion -6/Proximity Caves History --------- Turn | Location | Event 2 | -11/Scrapyard | Met Revision 17 9 | -11/Scrapyard | Discovered new exit (range 16) 164 | -11/Scrapyard | Entered Materials 331 | -10/Materials | Build established: Mutant 414 | -10/Materials | Discovered new exit (range 15) 452 | -10/Materials | Identified exit to Mines 694 | -10/Materials | Discovered new exit (range 8) 775 | -10/Materials | Entered another Materials area 775 | -9/Materials | Evolved 2 slots: Utility x2 1702 | -9/Materials | Discovered new exit (range 13) 2648 | -9/Materials | Lost 3 parts (1n1u1w) 2739 | -9/Materials | Core integrity fell below 50% 2775 | -9/Materials | First assault squad dispatched 2779 | -9/Materials | Entered Mines 2822 | -9/Mines | Met a Derelict shopkeep closing up shop 3237 | -9/Mines | Learned 4 Materials zone layouts 3249 | -9/Mines | Assembled infested the area 3271 | -9/Mines | Discovered new exit (range 11) 3273 | -9/Mines | A Derelict revealed a hidden shortcut to a safe place 3287 | -9/Mines | Core integrity fell below 20% 3321 | -9/Mines | Entered Zion 3353 | -7/Zion | Found Relay Coupler [Programmer] 3387 | -7/Zion | System corruption cleaned by Quarantine Array 3693 | -7/Zion | Learned location of Warlord (-4) 3697 | -7/Zion | Learned Factory stockpile data 3874 | -7/Zion | Visited the Megawrench Repair Shop 3874 | -7/Zion | Megawrench repaired 6 parts 4158 | -7/Zion | Discovered new exit (range 12) 4250 | -7/Zion | Entered Proximity Caves 4312 | -6/Proximity Caves | Build established: Derelict-Mutant 4445 | -6/Proximity Caves | Destroyed by G-50 Soldier with Heavy Laser Last Messages --------------- Slug penetrates Wall. Jacked H-66 Slayer... >>parse_system Reading system data... Penetrated by Slug. Destroyed Phase Shifter. Penetrated by Slug. Remote Datajack destroyed. Lgt. Fission Core melted. Gauss Rifle melted. H-66 Slayer destroyed. Acquired 20 matter. Acquired derelict log, extracted data. World map updated: -7/Zion. Targeting Computer fries itself beyond repair. Destroyed Hvy. Laser. G-50 Soldier destroyed. WJ-TAP(g) destroyed. Knocked back. Imp. Deuterium Engine destroyed. Map ----- +----------------------------------------------------+ | ##### % ## #??????????????? | | ## ## ## #??????????????? | | ## ### ## #??????????????? | | #### ### #??????????????? | | #?## ##?# #??????????????? | | ### ######??###??# #??????????????? | | ##?# ##???#????????# #??????????????? | | ##??# ##???## #??????# #??????????????? | | ##??# #???## #?????# #??????????????? | | #??# #?### ?????# #??????????????? | | #??# ### ?????# #??????????????? | | ##?# ##? ?????# #??????????????? | | #?# ## #??# #????# #??????????????? | | ### ?## ???# ##### #??????????????? | | ## ??## #?## #??????????????? | | ## ???# ###### ???# #??????????????? | | ## ???# #?## ?## #??????????????? | | ### ???# ### ## #??????????????? | | ##?? ???? ? ##??????????????? | | ?????????? ????# #???????????????? | | ?????????? ?????# #???????????????? | | ?????????????????# #???????????????? | | ???????????????### b ##???????????????? | | ?????????????### ###????????????????? | | ?????????? ####???????????????? | | ?????????? @ g #???????????? | | ???????????? ## g #???????????? | | ???????????????## ### g #???????????? | | ????????????????##???# ##???????????? | | ????????????????????# ;##????????????? | | ???????????????????# ##### ###?????????????? | | ?????????????????? #????# #???????????????? | | ????????????????? ?????# #???????????????? | | ???????????????? ??????? ##???????????????? | | ??????????????? ??????? #????????????????? | | ?????????????? ???????? #????????????????? | | ??????????????# ???????? ##????????????????? | | ???????????????? ????????? #?????????????????? | | ?????????????????????????????? ??????????????????? | | ?????????????????????????????????????????????????? | | ?????????????????????????????????????????????????? | | ?????????????????????????????????????????????????? | | ?????????????????????????????????????????????????? | | ?????????????????????????????????????????????????? | | ?????????????????????????????????????????????????? | | ?????????????????????????????????????????????????? | | ?????????????????????????????????????????????????? | | ?????????????????????????????????????????????????? | | ?????????????????????????????????????????????????? | | ?????????????????????????????????????????????????? | +----------------------------------------------------+ Best States ------------- Heat Dissipation 42 Energy Generation 16 Energy Capacity 465 Matter Stores 300 Matter Capacity 300 Sight Range 18 Terrain Scan Density 10 Core Shielding 20 Propulsion Shielding 33 Reclamation Efficiency 15 Evasion (%) 40 Targeting Accuracy 6 Recoil Reduction 2 Offensive Hacking 14 Item Schematics ----------------- Core Shielding | -9/Materials | Scanalyzed Robot Schematics ------------------ None Fabricated ------------ Nothing Alien Tech Used ----------------- None Achievements -------------- More Dakka Please Robot Respite Significant Disruption Challenges ------------ None Game ------ Seed EnergyMeleeBoomstick Manual? 0 Play Time 00:43:09 Cumulative 9.7 hours Start 2020.09.02 @ 01:02:35 End 2020.09.02 @ 01:43:57 Sessions 1 Manual Loads 0 Difficulty Rogue Special Mode None Game No. 21 Rogue 21 Adventurer 0 Explorer 0 Win Type - Total 0 Types 0/0/0/0/0/0/0 Lore% 17 Gallery% 20 Achievement% 13 Wizard Run 0 Options --------- ASCII 0 Keyboard 0 Movement Mouse Keybinds 0 Fullscreen 1 Font 18/SmallcapsGlow Map View 76x50 Tactical HUD 0 Map Filters NONE Filters NONE Steam 1 RUN: b3b88bef-d7e2-464f-b63c-ce9266667623